bitfinex/quotes_SOLUSD_20250313
["timestamp","ask_amount","ask_price","bid_price","bid_amount"]
[1741843511917,0.14216157,124.72,124.68,26.2309]
[1741843512115,38.43953921,124.71,124.65,45.65953921]
[1741843512436,38.43953921,124.71,124.66,38.43953921]
[1741843512633,38.43953921,124.71,124.65,45.65953921]
[1741843512819,38.43953921,124.71,124.66,38.43953921]
[1741843513025,38.72386235,124.72,124.66,38.43953921]
[1741843513221,38.43953921,124.72,124.66,38.43953921]
[1741843513425,38.43953921,124.74,124.68,38.43953921]
[1741843513626,38.43953921,124.73,124.67,38.43953921]
[1741843515517,38.43953921,124.74,124.68,38.43953921]
[1741843515716,38.43953921,124.75,124.7,38.43953921]
[1741843515915,0.14216157,124.76,124.7,38.43953921]
[1741843515916,38.58170078,124.76,124.7,38.43953921]
[1741843516238,38.43953921,124.75,124.69,45.63953921]
[1741843516534,38.43953921,124.75,124.69,64.65043921]
[1741843516737,38.43953921,124.74,124.69,64.65043921]
[1741843516930,38.43953921,124.72,124.64,19.0109]
[1741843517240,0.14216157,124.73,124.67,19.0109]
[1741843517439,38.43953921,124.74,124.68,38.43953921]
[1741843517742,38.43953921,124.69,124.62,19.0109]
[1741843517934,38.58170078,124.7,124.62,19.0109]
[1741843518137,38.43953921,124.72,124.66,38.43953921]
[1741843518438,38.43953921,124.73,124.67,38.43953921]
[1741843518837,38.43953921,124.74,124.68,38.43953921]
[1741843519030,8.0152,124.77,124.69,38.43953921]
[1741843519226,38.43953921,124.75,124.7,7.26]
[1741843519927,0.03,124.73,124.7,7.26]
[1741843520133,0.03,124.73,124.7,45.69953921]
[1741843520842,38.43953921,124.72,124.69,19.0109]
[1741843521043,0.03,124.73,124.69,19.0109]
[1741843521235,38.46953921,124.73,124.69,19.0109]
[1741843521436,38.43953921,124.72,124.66,45.69953921]
[1741843521635,38.43953921,124.71,124.66,7.26]
[1741843521835,0.03,124.73,124.67,38.43953921]
[1741843522140,0.03,124.73,124.68,38.43953921]
[1741843522444,0.03,124.73,124.68,57.45043921]
[1741843522625,8.0473,124.73,124.68,19.0109]
[1741843522945,38.43953921,124.71,124.68,19.0109]
[1741843523134,38.43953921,124.71,124.66,7.26]
[1741843523339,46.48683921,124.73,124.67,38.43953921]
[1741843523541,38.43953921,124.72,124.66,7.26]
[1741843523725,46.48683921,124.73,124.66,45.69953921]
[1741843523925,38.43953921,124.72,124.66,45.69953921]
[1741843524121,28.0905,124.73,124.66,7.26]
[1741843524326,38.43953921,124.7,124.66,7.26]
[1741843524953,38.43953921,124.71,124.66,7.26]
[1741843525126,46.48683921,124.73,124.67,38.43953921]
[1741843525452,0.03,124.73,124.68,38.43953921]
[1741843525631,46.45633921,124.74,124.68,38.43953921]
[1741843525831,38.43953921,124.73,124.67,57.45043921]
[1741843526331,23.99733335,124.73,124.67,43.00823335]
[1741843527037,23.99733335,124.72,124.67,19.0109]
[1741843527238,23.99733335,124.71,124.66,7.26]
[1741843527544,23.99733335,124.71,124.66,31.25733335]
[1741843528052,8.0168,124.74,124.68,30.52753335]
[1741843528549,8.0153,124.76,124.69,23.99733335]
[1741843528731,8.0153,124.76,124.7,7.28]
[1741843528927,8.0153,124.76,124.7,50.28823335]
[1741843529749,32.01223335,124.77,124.71,23.99733335]
[1741843529947,32.01223335,124.77,124.71,43.00823335]
[1741843530245,23.99733335,124.79,124.73,23.99733335]
[1741843530443,32.01093335,124.79,124.74,7.28]
[1741843530831,32.01093335,124.79,124.74,31.27733335]
[1741843531832,32.01093335,124.79,124.74,50.28823335]
[1741843532150,23.99733335,124.78,124.74,26.2909]
[1741843532352,38.36395822,124.78,124.74,26.2909]
[1741843533337,46.37755822,124.79,124.74,64.65485822]
[1741843533540,8.0136,124.79,124.74,64.65485822]
[1741843533939,46.37755822,124.79,124.74,64.65485822]
[1741843535133,38.36395822,124.79,124.74,64.65485822]
[1741843535560,1.6485,124.82,124.74,64.65485822]
[1741843535783,38.36395822,124.79,124.74,64.65485822]
[1741843536239,38.36395822,124.81,124.75,38.36395822]
[1741843536649,0.14216157,124.82,124.75,38.36395822]
[1741843536849,38.36395822,124.81,124.75,38.36395822]
[1741843537065,38.36395822,124.82,124.76,38.36395822]
[1741843537444,38.36395822,124.82,124.77,38.36395822]
[1741843537641,38.36395822,124.82,124.77,57.37485822]
[1741843537851,8.1561,124.85,124.77,19.0109]
[1741843538139,8.1561,124.85,124.77,57.37485822]
[1741843538449,38.36395822,124.82,124.77,57.37485822]
[1741843538652,38.36395822,124.82,124.77,19.0109]
[1741843538845,0.14216157,124.84,124.77,57.37485822]
[1741843539040,38.36395822,124.82,124.77,19.0109]
[1741843539568,38.36395822,124.81,124.77,19.0109]
[1741843539758,38.36395822,124.8,124.75,7.9074]
[1741843540151,38.36395822,124.81,124.75,54.28725822]
[1741843540344,38.36395822,124.81,124.75,46.27135822]
[1741843540558,38.36395822,124.8,124.75,7.9074]
[1741843540751,38.36395822,124.8,124.75,6.3593]
[1741843541065,38.36395822,124.81,124.75,44.72325822]
[1741843541863,8.0108,124.84,124.76,38.36395822]
[1741843542072,38.36395822,124.81,124.75,44.72325822]
[1741843542274,0.14216157,124.82,124.75,44.72325822]
[1741843542474,38.36395822,124.81,124.75,44.72325822]
[1741843542769,38.36395822,124.78,124.73,212.14]
[1741843543066,38.36395822,124.75,124.69,19.0109]
[1741843543305,38.36395822,124.73,124.68,8.0522]
[1741843543441,38.36395822,124.7,124.67,0.063]
[1741843543860,38.36395822,124.69,124.67,0.063]
[1741843544046,38.50611979,124.68,124.67,0.063]
[1741843544249,57.29793022,124.68,124.67,0.063]
[1741843544868,65.31843022,124.68,124.67,0.063]
[1741843545373,65.31843022,124.68,124.62,0.063]
[1741843545374,18.933972,124.67,124.62,0.063]
[1741843545571,57.29793022,124.63,124.62,0.063]
[1741843545761,38.50611979,124.63,124.62,0.063]
[1741843546081,38.36395822,124.64,124.62,0.063]
[1741843546251,38.36395822,124.65,124.62,0.063]
[1741843546445,0.14216157,124.68,124.62,0.063]
[1741843546446,38.36395822,124.66,124.62,0.063]
[1741843546952,38.50611979,124.67,124.62,0.063]
[1741843547584,0.14216157,124.67,124.62,0.063]
[1741843547777,38.43312894,124.64,124.6,38.36395822]
[1741843548082,12.47066082,124.64,124.6,38.36395822]
[1741843548257,12.47066082,124.64,124.6,58.36395822]
[1741843548461,12.47066082,124.64,124.61,45.74395822]
[1741843548976,38.36395822,124.69,124.63,38.36395822]
[1741843549158,38.36395822,124.68,124.63,38.36395822]
[1741843549358,38.36395822,124.68,124.62,38.36395822]
[1741843549556,38.36395822,124.64,124.61,7.38]
[1741843549771,38.36395822,124.66,124.61,7.38]
[1741843549971,38.36395822,124.7,124.64,38.36395822]
[1741843550254,18.79181043,124.73,124.64,46.38665822]
[1741843550459,38.36395822,124.72,124.66,38.36395822]
[1741843550988,38.36395822,124.71,124.65,45.74395822]
[1741843551290,38.36395822,124.7,124.65,7.38]
[1741843551588,38.36395822,124.66,124.61,220.225]
[1741843551788,38.36395822,124.65,124.61,220.225]
[1741843552160,38.36395822,124.67,124.61,258.58895822]
[1741843552365,38.36395822,124.68,124.63,38.36395822]
[1741843552588,38.36395822,124.67,124.62,38.36395822]
[1741843552891,38.36395822,124.66,124.61,220.225]
[1741843553286,38.36395822,124.68,124.62,38.36395822]
[1741843553477,18.933972,124.67,124.62,38.36395822]
[1741843553777,38.36395822,124.63,124.55,66.46505822]
[1741843554079,0.14216157,124.65,124.59,38.36395822]
[1741843554080,38.36395822,124.65,124.59,38.36395822]
[1741843554269,38.36395822,124.66,124.61,8.025]
[1741843554463,38.36395822,124.64,124.59,19.0109]
[1741843554663,0.14216157,124.66,124.59,19.0109]
[1741843554868,38.36395822,124.64,124.59,19.0109]
[1741843555065,38.36395822,124.66,124.61,0.063]
[1741843555389,38.36395822,124.67,124.61,38.42695822]
[1741843555692,38.36395822,124.66,124.61,0.063]
[1741843555997,38.36395822,124.67,124.61,0.063]
[1741843556292,38.36395822,124.67,124.61,38.42695822]
[1741843556493,38.36395822,124.71,124.65,38.36395822]
[1741843556660,0.03,124.72,124.66,38.36395822]
[1741843556661,38.39395822,124.72,124.66,38.36395822]
[1741843556862,38.36395822,124.71,124.66,38.36395822]
[1741843557086,38.36395822,124.71,124.65,38.36395822]
[1741843557767,38.36395822,124.7,124.64,45.74395822]
[1741843557985,38.36395822,124.68,124.64,7.38]
[1741843558166,38.36395822,124.66,124.61,259.63985822]
[1741843558580,38.36395822,124.67,124.61,259.63985822]
[1741843559162,38.36395822,124.66,124.61,250.66695822]
[1741843559369,38.36395822,124.66,124.61,212.303]
[1741843559583,8.16226157,124.69,124.61,250.66695822]
[1741843559584,38.36395822,124.67,124.61,250.66695822]
[1741843559781,38.50611979,124.68,124.62,38.36395822]
[1741843560083,38.36395822,124.69,124.63,38.36395822]
[1741843560575,38.36395822,124.64,124.61,19.0739]
[1741843560775,38.36395822,124.64,124.61,0.063]
[1741843560962,38.36395822,124.63,124.61,0.063]
[1741843561568,38.36395822,124.65,124.61,0.063]
[1741843561775,38.36395822,124.63,124.61,0.063]
[1741843562096,38.64828136,124.67,124.61,0.063]
[1741843562097,38.36395822,124.62,124.61,0.063]
[1741843562485,46.38825822,124.62,124.61,0.063]
[1741843563199,65.32223022,124.62,124.61,0.063]
[1741843563373,46.53041979,124.62,124.61,0.063]
[1741843563575,46.38825822,124.62,124.61,0.063]
[1741843564098,65.32223022,124.62,124.61,0.063]
[1741843565897,18.933972,124.61,124.54,0.063]
[1741843566075,38.36395822,124.56,124.54,0.063]
[1741843566274,38.36395822,124.57,124.54,0.063]
[1741843567104,46.39155822,124.57,124.54,0.063]
[1741843567307,38.36395822,124.57,124.54,0.063]
[1741843567483,38.36395822,124.6,124.54,38.42695822]
[1741843567976,38.36395822,124.59,124.54,7.423]
[1741843568408,38.36395822,124.58,124.54,7.423]
[1741843568903,38.36395822,124.59,124.54,7.423]
[1741843569287,46.39055822,124.59,124.54,7.423]
[1741843569614,38.36395822,124.6,124.54,45.78695822]
[1741843570502,38.36395822,124.59,124.54,7.423]
[1741843571286,8.0263,124.59,124.54,45.78695822]
[1741843571484,46.39025822,124.59,124.54,7.423]
[1741843571989,38.36395822,124.58,124.54,7.423]
[1741843572190,38.36395822,124.57,124.54,0.063]
[1741843572693,38.36395822,124.56,124.54,0.063]
[1741843573414,8.0289,124.55,124.54,0.063]
[1741843573610,46.53501979,124.55,124.54,0.063]
[1741843574102,8.0289,124.55,124.54,0.063]
[1741843574876,46.39285822,124.55,124.54,0.063]
[1741843576899,46.53501979,124.55,124.54,0.0001]
[1741843578905,8.0289,124.55,124.54,0.0001]
[1741843580498,8.0282,124.56,124.54,0.0001]
[1741843580699,8.0263,124.59,124.54,38.36405822]
[1741843580884,8.0263,124.59,124.56,38.36395822]
[1741843581084,8.0263,124.59,124.57,45.70395822]
[1741843581496,8.0263,124.59,124.57,7.34]
[1741843582512,0.03,124.62,124.58,38.36395822]
[1741843582707,0.03,124.62,124.61,58.36395822]
[1741843582896,0.03,124.62,124.61,109.86526865]
[1741843583087,0.03,124.67,124.61,109.86526865]
[1741843583311,0.03,124.67,124.65,38.36395822]
[1741843583496,8.0512,124.67,124.65,45.72395822]
[1741843583684,8.0512,124.67,124.65,7.36]
[1741843583884,46.41515822,124.67,124.65,7.36]
[1741843584095,38.36395822,124.66,124.61,25.3695]
[1741843584711,8.0224,124.65,124.61,25.3695]
[1741843585112,46.38635822,124.65,124.61,25.3695]
[1741843585508,38.36395822,124.64,124.61,19.0109]
[1741843585994,38.50611979,124.62,124.55,45.72395822]
[1741843586199,38.36395822,124.61,124.55,45.72395822]
[1741843586795,8.0256,124.6,124.55,45.72395822]
[1741843587118,38.36395822,124.63,124.58,38.36395822]
[1741843587410,38.36395822,124.61,124.55,64.73485822]
[1741843587814,38.36395822,124.6,124.55,64.73485822]
[1741843588186,38.36395822,124.61,124.55,64.73485822]
[1741843588599,38.36395822,124.6,124.55,26.3709]
[1741843588801,8.0263,124.59,124.55,26.3709]
[1741843589210,8.0263,124.59,124.55,64.73485822]
[1741843589408,8.0257,124.6,124.56,38.36395822]
[1741843590406,38.36395822,124.59,124.55,26.3709]
[1741843590597,8.0257,124.6,124.55,19.0109]
[1741843590804,0.14216157,124.61,124.55,19.0109]
[1741843590999,28.0852,124.62,124.56,38.36395822]
[1741843591206,8.0243,124.62,124.59,38.36395822]
[1741843591598,8.0243,124.62,124.58,38.36395822]
[1741843592107,8.0243,124.62,124.57,38.36395822]
[1741843592419,8.0243,124.62,124.58,7.4]
[1741843593421,8.0543,124.62,124.58,7.4]
[1741843593810,8.0543,124.62,124.58,6.9]
[1741843594397,38.36395822,124.61,124.58,6.9]
[1741843594795,66.47915822,124.62,124.58,6.9]
[1741843595032,8.0543,124.62,124.58,6.9]
[1741843595697,46.41825822,124.62,124.58,6.9]
[1741843595911,8.0543,124.62,124.58,6.9]
[1741843596427,38.36395822,124.61,124.58,6.9]
[1741843596610,38.36395822,124.59,124.54,0.0001]
[1741843596815,38.36395822,124.58,124.54,0.0001]
[1741843597004,8.0276,124.57,124.54,0.0001]
[1741843598801,38.36395822,124.59,124.54,0.0001]
[1741843599002,46.38895822,124.61,124.55,38.36395822]
[1741843599407,8.025,124.61,124.55,38.36395822]
[1741843599609,38.50611979,124.6,124.54,38.36405822]
[1741843599800,38.36395822,124.58,124.54,0.0001]
[1741843600201,38.36395822,124.56,124.54,0.0001]
[1741843600407,46.46208136,124.6,124.54,0.0001]
[1741843600723,38.36395822,124.55,124.54,0.0001]
[1741843601123,46.39285822,124.55,124.54,0.0001]
[1741843601510,46.53501979,124.55,124.54,0.0001]
[1741843601732,65.32683022,124.55,124.54,0.0001]
[1741843603349,46.39285822,124.55,124.54,0.0001]
[1741843603523,8.0289,124.55,124.54,0.0001]
[1741843604141,46.53501979,124.55,124.54,0.0001]
[1741843604938,8.0289,124.55,124.54,0.0001]
[1741843605156,46.53501979,124.55,124.54,0.0001]
[1741843605845,46.39285822,124.55,124.54,0.0001]
[1741843606030,46.53501979,124.55,124.54,0.0001]
[1741843606339,65.32683022,124.55,124.54,0.0001]
[1741843606540,65.32683022,124.55,124.49,0.063]
[1741843606541,49.732572,124.54,124.49,0.063]
[1741843606849,57.15576865,124.5,124.49,0.063]
[1741843607215,65.18786865,124.5,124.49,0.063]
[1741843607645,65.04570708,124.5,124.49,0.063]
[1741843607826,46.53821979,124.5,124.49,0.063]
[1741843608943,46.68038136,124.5,124.49,0.063]
[1741843609149,71.54725822,124.53,124.49,0.063]
[1741843609150,38.36395822,124.51,124.49,0.063]
[1741843609355,38.50611979,124.5,124.49,0.063]
[1741843610028,38.36395822,124.51,124.49,0.063]
[1741843610243,46.53691979,124.52,124.49,0.063]
[1741843611947,8.17296157,124.52,124.49,0.063]
[1741843612151,57.29793022,124.57,124.51,38.36395822]
[1741843612347,38.36395822,124.56,124.51,38.36395822]
[1741843612852,38.36395822,124.57,124.52,38.36395822]
[1741843613358,38.36395822,124.56,124.51,38.36395822]
[1741843613529,38.36395822,124.56,124.5,64.75485822]
[1741843613852,0.14216157,124.55,124.5,64.75485822]
[1741843614150,46.39345822,124.54,124.5,26.3909]
[1741843614345,8.0295,124.54,124.5,7.38]
[1741843614760,46.39345822,124.54,124.5,7.38]
[1741843615251,46.39295822,124.55,124.5,7.38]
[1741843615430,8.029,124.55,124.5,45.74395822]
[1741843615757,46.39295822,124.55,124.5,45.74395822]
[1741843615961,8.029,124.55,124.5,45.74395822]
[1741843616657,0.03,124.54,124.5,45.74395822]
[1741843618656,38.36395822,124.52,124.49,0.063]
[1741843618860,38.36395822,124.53,124.49,0.063]
[1741843620563,66.49775822,124.54,124.49,0.063]
[1741843620856,46.42395822,124.54,124.49,0.063]
[1741843621245,38.36395822,124.53,124.49,0.063]
[1741843621965,38.36395822,124.51,124.49,0.063]
[1741843622168,66.49775822,124.54,124.49,0.063]
[1741843622871,0.03,124.54,124.5,45.76395822]
[1741843623167,0.03,124.54,124.52,6.2778]
[1741843623382,8.0597,124.54,124.52,6.2778]
[1741843623941,8.0597,124.54,124.5,64.77485822]
[1741843624158,8.0597,124.54,124.5,26.4109]
[1741843624370,46.42365822,124.54,124.5,26.4109]
[1741843624573,38.36395822,124.53,124.5,26.4109]
[1741843624868,8.0308,124.52,124.5,26.4109]
[1741843625040,46.39475822,124.52,124.5,19.0109]
[1741843625571,66.47175822,124.52,124.49,0.063]
[1741843626249,38.36395822,124.51,124.49,0.063]
[1741843626844,46.39605822,124.5,124.49,0.063]
[1741843627159,8.0321,124.5,124.49,0.063]
[1741843631470,46.39605822,124.5,124.48,0.063]
[1741843631664,38.36395822,124.49,124.48,0.063]
[1741843633429,46.39665822,124.49,124.48,0.063]
[1741843634780,8.0327,124.49,124.48,0.063]
[1741843635497,38.36395822,124.49,124.48,0.063]
[1741843635881,38.50611979,124.49,124.48,0.0001]
[1741843636597,38.36395822,124.49,124.48,0.0001]
[1741843636792,46.39605822,124.5,124.48,0.0001]
[1741843637888,38.50611979,124.49,124.48,0.0001]
[1741843639077,57.29793022,124.49,124.48,0.0001]
[1741843639608,38.64828136,124.49,124.48,0.0001]
[1741843639901,46.68098136,124.49,124.48,0.0001]
[1741843642200,8.0314,124.51,124.48,0.0001]
[1741843642393,8.0314,124.51,124.48,24.07367521]
[1741843642699,8.0314,124.51,124.48,31.45367521]
[1741843643699,8.0314,124.51,124.48,0.0001]
[1741843643882,32.10497521,124.51,124.48,0.0001]
[1741843644089,8.0314,124.51,124.48,0.0001]
[1741843645102,8.031,124.52,124.48,38.52001099]
[1741843645804,46.55091099,124.52,124.48,0.0001]
[1741843645974,8.0596,124.54,124.49,38.51991099]
[1741843646297,0.03,124.54,124.53,38.51991099]
[1741843646600,0.03,124.54,124.52,38.51991099]
[1741843646803,0.03,124.54,124.49,172.86054886]
[1741843647006,8.0596,124.54,124.49,57.53081099]
[1741843647296,46.57951099,124.54,124.49,57.53081099]
[1741843647510,8.0596,124.54,124.5,38.51991099]
[1741843647681,0.03,124.54,124.52,38.51991099]
[1741843648303,0.03,124.54,124.52,45.89991099]
[1741843649198,0.03,124.54,124.52,7.38]
[1741843649805,0.03,124.54,124.53,38.51991099]
[1741843649992,0.03,124.54,124.53,46.15831099]
[1741843651088,0.03,124.54,124.53,7.6384]
[1741843652305,0.03,124.54,124.53,6.0343]
[1741843652510,0.03,124.54,124.52,26.3909]
[1741843653210,0.03,124.54,124.52,7.38]
[1741843653710,0.03,124.54,124.53,57.31172142]
[1741843654502,0.03,124.54,124.53,65.34182142]
[1741843654702,0.03,124.62,124.57,20.0]
[1741843655008,0.03,124.62,124.6,38.51991099]
[1741843655305,0.03,124.62,124.58,45.89991099]
[1741843655602,0.03,124.62,124.59,57.31172142]
[1741843655802,0.03,124.62,124.61,57.45388299]
[1741843655990,0.03,124.62,124.61,38.51991099]
[1741843657312,0.03,124.62,124.61,65.33672142]
[1741843657516,0.03,124.62,124.61,219.68978299]
[1741843658100,0.03,124.62,124.61,211.52262142]
[1741843658490,0.03,124.62,124.61,211.66478299]
[1741843658691,0.03,124.62,124.61,219.68978299]
[1741843659098,0.03,124.67,124.66,38.51991099]
[1741843659401,0.03,124.67,124.64,19.0109]
[1741843659783,0.03,124.67,124.63,7.4]
[1741843659784,38.54991099,124.67,124.63,7.4]
[1741843660209,0.03,124.67,124.63,45.91991099]
[1741843660704,38.69207256,124.67,124.63,7.4]
[1741843660913,0.03,124.67,124.63,45.91991099]
[1741843661088,0.03,124.67,124.64,38.51991099]
[1741843662207,0.03,124.67,124.65,38.51991099]
[1741843662398,0.03,124.67,124.66,58.51991099]
[1741843663510,0.03,124.67,124.66,238.09928299]
[1741843663693,0.03,124.67,124.66,246.12108299]
[1741843663895,0.03,124.67,124.66,247.62548299]
[1741843664094,0.03,124.67,124.66,239.60368299]
[1741843664408,0.03,124.67,124.66,467.38548299]
[1741843664606,0.03,124.67,124.66,303.72531099]
[1741843664817,0.03,124.67,124.66,258.7709]
[1741843668432,0.03,124.67,124.66,316.08262142]
[1741843668905,0.03,124.67,124.66,297.29081099]
[1741843670618,0.03,124.67,124.66,324.10442142]
[1741843670911,0.03,124.67,124.66,324.24658299]
[1741843671414,0.03,124.67,124.66,325.80628299]
[1741843671888,0.03,124.67,124.66,461.00628299]
[1741843672588,0.03,124.67,124.66,460.86412142]
[1741843672812,0.03,124.67,124.66,461.00628299]
[1741843673014,0.03,124.72,124.71,20.0]
[1741843673316,0.03,124.72,124.71,84.91071099]
[1741843673901,0.03,124.72,124.71,92.92931099]
[1741843674099,0.03,124.72,124.71,111.72112142]
[1741843674595,0.03,124.72,124.71,84.91071099]
[1741843675607,0.03,124.72,124.68,57.53071099]
[1741843675810,0.03,124.72,124.69,7.38]
[1741843676318,0.03,124.72,124.7,38.51991099]
[1741843676909,0.03,124.72,124.69,64.54955985]
[1741843677224,0.03,124.72,124.69,7.38]
[1741843677922,8.0192,124.7,124.68,19.0108]
[1741843678104,38.54991099,124.72,124.68,19.0108]
[1741843678416,8.0481,124.72,124.68,19.0108]
[1741843678717,0.03,124.72,124.69,23.99684166]
[1741843678909,0.03,124.72,124.71,23.99684166]
[1741843679117,0.03,124.72,124.71,50.38764166]
[1741843679314,0.03,124.72,124.71,26.3908]
[1741843680497,0.03,124.72,124.68,19.0108]
[1741843680498,24.02684166,124.72,124.68,19.0108]
[1741843680701,23.99684166,124.69,124.63,154.2108]
[1741843680904,23.99684166,124.66,124.63,19.0108]
[1741843681098,23.99684166,124.68,124.62,24.05984166]
[1741843681711,23.99684166,124.67,124.62,0.063]
[1741843681915,23.99684166,124.66,124.62,0.063]
[1741843682325,38.4332463,124.67,124.62,0.063]
[1741843682514,46.4537463,124.68,124.62,38.4962463]
[1741843682716,38.4332463,124.67,124.62,0.063]
[1741843682928,38.4332463,124.66,124.63,20.0]
[1741843683123,38.4332463,124.65,124.63,20.0]
[1741843683431,38.4332463,124.65,124.62,0.063]
[1741843684233,46.4562463,124.65,124.62,0.063]
[1741843684408,38.4332463,124.64,124.62,0.063]
[1741843684606,38.4332463,124.63,124.62,0.063]
[1741843685209,38.71756944,124.63,124.62,0.063]
[1741843685412,38.4332463,124.6,124.54,57.4440463]
[1741843686042,38.4332463,124.61,124.55,38.4332463]
[1741843686335,46.4588463,124.6,124.55,38.4332463]
[1741843686718,8.0243,124.62,124.57,38.4332463]
[1741843687422,38.4332463,124.63,124.57,38.4332463]
[1741843687636,53.14470787,124.65,124.59,38.4332463]
[1741843687942,48.0743463,124.66,124.6,38.4332463]
[1741843688143,40.0523463,124.66,124.61,38.4332463]
[1741843688333,1.6191,124.66,124.61,57.4440463]
[1741843688707,1.6191,124.66,124.62,38.4332463]
[1741843688911,46.4845463,124.67,124.62,38.4332463]
[1741843689343,8.0513,124.67,124.62,38.4332463]
[1741843689830,46.4845463,124.67,124.62,38.4332463]
[1741843690426,46.4845463,124.67,124.61,57.4440463]
[1741843690814,38.4332463,124.66,124.61,19.0108]
[1741843691014,46.4845463,124.67,124.61,57.4440463]
[1741843691312,0.03,124.67,124.63,38.4332463]
[1741843691516,0.03,124.67,124.63,45.8532463]
[1741843691717,38.4332463,124.66,124.63,7.42]
[1741843692219,38.4332463,124.65,124.61,19.0108]
[1741843692413,38.4632463,124.67,124.61,57.4440463]
[1741843692731,0.03,124.67,124.62,38.4332463]
[1741843692910,38.4632463,124.67,124.61,65.4688463]
[1741843693117,38.4332463,124.65,124.61,19.0108]
[1741843693616,38.4332463,124.66,124.61,57.4440463]
[1741843693837,38.4632463,124.67,124.61,65.4687463]
[1741843694332,0.03,124.67,124.61,57.4440463]
[1741843694538,38.4332463,124.66,124.61,57.4440463]
[1741843695338,0.03,124.67,124.61,57.4440463]
[1741843695539,38.4332463,124.66,124.61,57.4440463]
[1741843695735,38.4332463,124.65,124.61,19.0108]
[1741843696236,38.4332463,124.66,124.61,19.0108]
[1741843696418,0.03,124.67,124.63,38.4332463]
[1741843696618,0.03,124.67,124.64,38.4332463]
[1741843697340,0.03,124.67,124.63,38.4332463]
[1741843697636,0.03,124.67,124.64,38.57540787]
[1741843697937,0.03,124.67,124.66,65.3890183]
[1741843698139,0.03,124.67,124.66,219.5998183]
[1741843698438,0.03,124.67,124.66,219.45765673]
[1741843698836,0.03,124.67,124.66,211.43585673]
[1741843700223,0.03,124.67,124.66,192.6440463]
[1741843700925,0.03,124.67,124.66,76.09369516]
[1741843701429,0.03,124.67,124.66,57.4440463]
[1741843702340,0.03,124.67,124.66,43.00918147]
[1741843705339,24.02838147,124.67,124.64,212.24]
[1741843705715,0.03,124.67,124.64,212.24]
[1741843706329,24.02838147,124.67,124.64,212.24]
[1741843706540,0.03,124.67,124.64,212.24]
[1741843707246,32.04948147,124.67,124.64,212.24]
[1741843707944,8.0511,124.67,124.64,212.24]
[1741843708139,23.99838147,124.65,124.61,154.2738]
[1741843708480,23.99838147,124.65,124.61,0.063]
[1741843709343,23.99838147,124.63,124.61,0.063]
[1741843709645,23.99838147,124.62,124.61,0.063]
[1741843709830,23.99838147,124.64,124.61,0.063]
[1741843710235,8.0237,124.63,124.61,0.063]
[1741843710439,23.99838147,124.62,124.61,0.063]
[1741843710638,24.14054304,124.62,124.61,0.063]
[1741843710848,14.2859,124.63,124.61,0.063]
[1741843711147,23.99838147,124.62,124.61,0.063]
[1741843711356,14.2859,124.63,124.61,0.063]
[1741843711357,38.28428147,124.63,124.61,0.063]
[1741843711949,23.99838147,124.62,124.61,0.063]
[1741843712450,8.0242,124.63,124.61,0.063]
[1741843713031,8.0219,124.66,124.61,24.06138147]
[1741843713238,8.0219,124.66,124.62,23.99838147]
[1741843713747,0.03,124.67,124.64,23.99838147]
[1741843714039,0.03,124.67,124.65,7.46]
[1741843714423,38.44916933,124.67,124.65,7.46]
[1741843714626,38.41916933,124.66,124.65,7.46]
[1741843714824,38.41916933,124.66,124.62,26.4708]
[1741843717230,8.0218,124.66,124.62,26.4708]
[1741843717432,0.03,124.67,124.63,57.21097976]
[1741843717740,0.03,124.67,124.64,38.41916933]
[1741843717945,0.03,124.67,124.65,38.41916933]
[1741843719049,0.03,124.67,124.66,20.0]
[1741843719240,0.03,124.67,124.66,66.44096933]
[1741843719554,0.03,124.67,124.66,104.24357976]
[1741843719844,0.03,124.67,124.66,104.10141819]
[1741843720052,0.03,124.67,124.66,96.22177976]
[1741843720349,0.03,124.67,124.66,39.0108]
[1741843720749,0.03,124.67,124.63,211.42177976]